Workbook

Sheet Sheet1
A1: 附件：
A2: 忻城县参加2025届高校毕业生就业双选会(南宁专场)招聘教师 笔试和面试考生成绩表
A3: 序号 | B3: 报名岗位 | C3: 姓名 | D3: 笔试成绩 | E3: 笔试折算后的成绩（笔试成绩×50%） | F3: 面试 成绩 | G3: 总成绩 | H3: 总成绩排名 | I3: 备注
A4: 1 | B4: 忻城县中学数学教师 | C4: 覃玉妹 | D4: 免笔试 | F4: 84.99 | G4: =F4 -> 84.99 | H4: 1
A5: 2 | B5: 忻城县中学数学教师 | C5: 韦金苑 | D5: 免笔试 | F5: 84.14 | G5: =F5 -> 84.14 | H5: 2
A6: 3 | B6: 忻城县中学数学教师 | C6: 卢德旺 | D6: 免笔试 | F6: 78.01 | G6: =F6 -> 78.01 | H6: 3
A7: 4 | B7: 忻城县中学数学教师 | C7: 林倩茹 | D7: 免笔试 | F7: 70.38 | G7: =F7 -> 70.38 | H7: 4
A8: 5 | B8: 忻城县中学数学教师 | C8: 凌煜媛 | D8: 免笔试 | F8: 68.41 | G8: =F8 -> 68.41 | H8: 5
A9: 6 | B9: 忻城县民族中学数学教师 | C9: 韦欣妮 | D9: 87.86 | E9: =D9*0.5 -> 43.93 | F9: 78.46 | G9: =E9+F9 -> 122.39 | H9: 1
A10: 7 | B10: 忻城县民族中学数学教师 | C10: 黄家容 | D10: 84.46 | E10: =D10*0.5 -> 42.23 | F10: 79.86 | G10: =E10+F10 -> 122.09 | H10: 2
A11: 8 | B11: 忻城县民族中学数学教师 | C11: 林建海 | D11: 66.41 | E11: =D11*0.5 -> 33.21 | F11: 57.48 | G11: =E11+F11 -> 90.69 | H11: 3 | I11: 面试成绩不及格
A12: 9 | B12: 忻城县民族中学英语教师 | C12: 韦旋静 | D12: 81.80 | E12: =D12*0.5 -> 40.90 | F12: 57.24 | G12: =E12+F12 -> 98.14 | H12: 1 | I12: 面试成绩不及格
A13: 10 | B13: 忻城县民族中学英语教师 | C13: 钟媛幸 | D13: 78.58 | E13: =D13*0.5 -> 39.29 | F13: 56.90 | G13: =E13+F13 -> 96.19 | H13: 2 | I13: 面试成绩不及格
A14: 11 | B14: 忻城县民族中学英语教师 | C14: 黄美琳 | D14: 71.57 | E14: =D14*0.5 -> 35.79 | F14: 56.52 | G14: =E14+F14 -> 92.31 | H14: 3 | I14: 面试成绩不及格
A15: 12 | B15: 忻城县民族中学生物教师 | C15: 罗红杏 | D15: 74.70 | E15: =D15*0.5 -> 37.35 | F15: 79.23 | G15: =E15+F15 -> 116.58 | H15: 1
A16: 13 | B16: 忻城县民族中学生物教师 | C16: 吴健宁 | D16: 69.60 | E16: =D16*0.5 -> 34.80 | F16: 76.35 | G16: =E16+F16 -> 111.15 | H16: 2
A17: 14 | B17: 忻城县民族中学生物教师 | C17: 盘玉璐 | D17: 76.60 | E17: =D17*0.5 -> 38.30 | G17: =E17+F17 -> 38.30 | H17: 3 | I17: 放弃面试
A18: 15 | B18: 忻城县民族中学心理教师 | C18: 蓝雪娥 | D18: 81.40 | E18: =D18*0.5 -> 40.70 | F18: 78.52 | G18: =E18+F18 -> 119.22 | H18: 1
A19: 16 | B19: 忻城县民族中学心理教师 | C19: 杨叶秀 | D19: 73.70 | E19: =D19*0.5 -> 36.85 | F19: 74.15 | G19: =E19+F19 -> 111.00 | H19: 2
A20: 17 | B20: 忻城县民族中学体育教师 | C20: 朱册晖 | D20: 82.13 | E20: =D20*0.5 -> 41.07 | F20: 82.53 | G20: =E20+F20 -> 123.60 | H20: 1
A21: 18 | B21: 忻城县民族中学体育教师 | C21: 丁继凤 | D21: 79.13 | E21: =D21*0.5 -> 39.57 | F21: 79.47 | G21: =E21+F21 -> 119.04 | H21: 2
A22: 19 | B22: 忻城县民族中学体育教师 | C22: 黄林二 | D22: 77.96 | E22: =D22*0.5 -> 38.98 | F22: 79.45 | G22: =E22+F22 -> 118.43 | H22: 3
A23: 20 | B23: 忻城县民族中学体育教师 | C23: 覃子俊 | D23: 78.76 | E23: =D23*0.5 -> 39.38 | G23: =E23+F23 -> 39.38 | H23: 4 | I23: 按1:3确定面试人选。未能进入面试
A24: 21 | B24: 忻城县民族中学体育教师 | C24: 韦英敢 | D24: 75.30 | E24: =D24*0.5 -> 37.65 | G24: =E24+F24 -> 37.65 | H24: 5 | I24: 按1:3确定面试人选。未能进入面试
A25: 22 | B25: 忻城县民族中学体育教师 | C25: 李泉贤 | D25: 75.20 | E25: =D25*0.5 -> 37.60 | G25: =E25+F25 -> 37.60 | H25: 6 | I25: 按1:3确定面试人选。未能进入面试
A26: 23 | B26: 忻城县民族中学体育教师 | C26: 黄恒同 | D26: 70.53 | E26: =D26*0.5 -> 35.27 | G26: =E26+F26 -> 35.27 | H26: 7 | I26: 按1:3确定面试人选。未能进入面试
A27: 24 | B27: 忻城县民族中学体育教师 | C27: 黄启国 | D27: 70.10 | E27: =D27*0.5 -> 35.05 | G27: =E27+F27 -> 35.05 | H27: 8 | I27: 按1:3确定面试人选。未能进入面试
A28: 25 | B28: 忻城县民族中学信息教师 | C28: 何婷敏 | D28: 77.93 | E28: =D28*0.5 -> 38.97 | G28: =E28+F28 -> 38.97 | H28: 1 | I28: 放弃面试
